[Event "January 9 Late 2024"]
[Site "https://www.chess.com"]
[Date "2024.01.10"]
[Round "2"]
[White "Goncalves, Samuel Jesus P"]
[Black "Koellner, Ruben Gideon"]
[Result "0-1"]
[Board "135"]
[TimeControl "180+1"]
[WhiteFideId "1945130"]
[BlackFideId "12993093"]
[WhiteElo "2419"]
[BlackElo "2740"]
[WhiteTeam "POR"]
[BlackTeam "GER"]
[WhiteClock "0:00:09"]
[BlackClock "0:00:12"]

1. Nf3 {[%clk 0:03:00]}  d6 {[%clk 0:02:58]} 2. d4 {[%clk 0:03:00]}  Nf6 {[%clk 0:02:52]} 3. g3 {[%clk 0:02:59]}  Nbd7 {[%clk 0:02:43]} 4. c4 {[%clk 0:02:55]}  e5 {[%clk 0:02:42]} 5. Nc3 {[%clk 0:02:54]}  Be7 {[%clk 0:02:41]} 6. Bg2 {[%clk 0:02:54]}  O-O {[%clk 0:02:40]} 7. O-O {[%clk 0:02:55]}  Re8 {[%clk 0:02:40]} 8. e4 {[%clk 0:02:54]}  Bf8 {[%clk 0:02:40]} 9. Re1 {[%clk 0:02:52]}  c6 {[%clk 0:02:40]} 10. h3 {[%clk 0:02:51]}  a6 {[%clk 0:02:40]} 11. Qc2 {[%clk 0:02:30]}  b5 {[%clk 0:02:38]} 12. cxb5 {[%clk 0:02:13]}  axb5 {[%clk 0:02:36]} 13. Be3 {[%clk 0:02:11]}  Bb7 {[%clk 0:02:29]} 14. a3 {[%clk 0:02:09]}  Qb8 {[%clk 0:02:25]} 15. Rad1 {[%clk 0:02:09]}  Rc8 {[%clk 0:02:14]} 16. Qd2 {[%clk 0:01:52]}  Nb6 {[%clk 0:02:11]} 17. Bf1 {[%clk 0:01:38]}  Nc4 {[%clk 0:02:04]} 18. Bxc4 {[%clk 0:01:38]}  bxc4 {[%clk 0:02:04]} 19. Bg5 {[%clk 0:01:27]}  Nd7 {[%clk 0:02:00]} 20. Qe2 {[%clk 0:01:08]}  exd4 {[%clk 0:01:53]} 21. Nxd4 {[%clk 0:01:07]}  Ne5 {[%clk 0:01:53]} 22. Rf1 {[%clk 0:00:55]}  Nd3 {[%clk 0:01:49]} 23. Nf5 {[%clk 0:00:47]}  Re8 {[%clk 0:01:43]} 24. Qd2 {[%clk 0:00:37]}  Ba6 {[%clk 0:01:30]} 25. Nd4 {[%clk 0:00:30]}  c5 {[%clk 0:01:13]} 26. Nf5 {[%clk 0:00:24]}  Qxb2 {[%clk 0:01:11]} 27. Qxb2 {[%clk 0:00:24]}  Nxb2 {[%clk 0:01:12]} 28. Rd2 {[%clk 0:00:20]}  Nd3 {[%clk 0:01:12]} 29. Nd5 {[%clk 0:00:19]}  Bb7 {[%clk 0:01:04]} 30. Nc7 {[%clk 0:00:19]}  Bxe4 {[%clk 0:01:02]} 31. Nxe8 {[%clk 0:00:16]}  Bxf5 {[%clk 0:01:01]} 32. Nc7 {[%clk 0:00:16]}  Rxa3 {[%clk 0:01:01]} 33. Nd5 {[%clk 0:00:15]}  Bxh3 {[%clk 0:00:59]} 34. Rb1 {[%clk 0:00:14]}  h6 {[%clk 0:00:55]} 35. Rb8 {[%clk 0:00:12]}  hxg5 {[%clk 0:00:51]} 36. Ne7+ {[%clk 0:00:13]}  Kh7 {[%clk 0:00:50]} 37. Rxf8 {[%clk 0:00:14]}  Be6 {[%clk 0:00:49]} 38. Rd8 {[%clk 0:00:12]}  c3 {[%clk 0:00:43]} 39. Rxd3 {[%clk 0:00:13]}  Ra1+ {[%clk 0:00:42]} 40. Kg2 {[%clk 0:00:13]}  c2 {[%clk 0:00:43]} 41. Rc3 {[%clk 0:00:13]}  c1=Q {[%clk 0:00:41]} 42. Rxc1 {[%clk 0:00:14]}  Rxc1 {[%clk 0:00:42]} 43. Rxd6 {[%clk 0:00:14]}  c4 {[%clk 0:00:40]} 44. Nc6 {[%clk 0:00:14]}  Bf5 {[%clk 0:00:32]} 45. Nd4 {[%clk 0:00:14]}  Be4+ {[%clk 0:00:31]} 46. f3 {[%clk 0:00:14]}  Bd3 {[%clk 0:00:29]} 47. Kf2 {[%clk 0:00:14]}  Rd1 {[%clk 0:00:27]} 48. Ke3 {[%clk 0:00:15]}  Re1+ {[%clk 0:00:27]} 49. Kd2 {[%clk 0:00:15]}  Rg1 {[%clk 0:00:26]} 50. g4 {[%clk 0:00:15]}  f6 {[%clk 0:00:25]} 51. Rc6 {[%clk 0:00:15]}  Rg2+ {[%clk 0:00:25]} 52. Kc3 {[%clk 0:00:14]}  Ra2 {[%clk 0:00:25]} 53. Rc7 {[%clk 0:00:15]}  Rf2 {[%clk 0:00:25]} 54. Kb4 {[%clk 0:00:13]}  Kg6 {[%clk 0:00:25]} 55. Kc3 {[%clk 0:00:13]}  Be2 {[%clk 0:00:25]} 56. Ne6 {[%clk 0:00:13]}  Rxf3+ {[%clk 0:00:21]} 57. Kd2 {[%clk 0:00:14]}  Bd3 {[%clk 0:00:18]} 58. Rxg7+ {[%clk 0:00:14]}  Kh6 {[%clk 0:00:18]} 59. Rc7 {[%clk 0:00:14]}  Rg3 {[%clk 0:00:16]} 60. Rc8 {[%clk 0:00:10]}  Rxg4 {[%clk 0:00:15]} 61. Rh8+ {[%clk 0:00:10]}  Bh7 {[%clk 0:00:15]} 62. Nf8 {[%clk 0:00:09]}  Kg7 {[%clk 0:00:12]} 63. Rxh7+ {[%clk 0:00:09]}  Kxf8 {[%clk 0:00:12]} 64. Rc7 {[%clk 0:00:10]}  Rf4 {[%clk 0:00:12]} 65. Ke3 {[%clk 0:00:11]}  Ke8 {[%clk 0:00:11]} 66. Rb7 {[%clk 0:00:11]}  Kd8 {[%clk 0:00:11]} 67. Ra7 {[%clk 0:00:11]}  c3 {[%clk 0:00:11]} 68. Kd3 {[%clk 0:00:11]}  Rf3+ {[%clk 0:00:11]} 69. Kc2 {[%clk 0:00:11]}  g4 {[%clk 0:00:12]} 70. Rg7 {[%clk 0:00:09]}  f5 {[%clk 0:00:12]} 0-1

[Event "January 9 Late 2024"]
[Site "https://www.chess.com"]
[Date "2024.01.09"]
[Round "2"]
[White "Meduri, Aakaash"]
[Black "Tarhan, Adar"]
[Result "0-1"]
[Board "138"]
[TimeControl "180+1"]
[WhiteFideId "2032252"]
[BlackFideId "34544712"]
[WhiteElo "2411"]
[BlackElo "2693"]
[WhiteTeam "USA"]
[BlackTeam "TUR"]
[WhiteClock "0:00:00"]
[BlackClock "0:01:16"]

1. d4 {[%clk 0:03:00]}  Nf6 {[%clk 0:02:59]} 2. Bg5 {[%clk 0:03:01]}  Ne4 {[%clk 0:02:59]} 3. h4 {[%clk 0:03:01]}  c5 {[%clk 0:02:58]} 4. e3 {[%clk 0:03:01]}  cxd4 {[%clk 0:02:50]} 5. exd4 {[%clk 0:03:01]}  Qa5+ {[%clk 0:02:50]} 6. Nd2 {[%clk 0:02:47]}  Nxg5 {[%clk 0:02:49]} 7. hxg5 {[%clk 0:02:48]}  Qxg5 {[%clk 0:02:49]} 8. Ngf3 {[%clk 0:02:48]}  Qa5 {[%clk 0:02:49]} 9. Bd3 {[%clk 0:02:43]}  g6 {[%clk 0:02:49]} 10. c3 {[%clk 0:02:29]}  Bg7 {[%clk 0:02:45]} 11. Ne4 {[%clk 0:02:07]}  d5 {[%clk 0:02:28]} 12. Ng3 {[%clk 0:01:50]}  Nc6 {[%clk 0:02:25]} 13. Qd2 {[%clk 0:01:44]}  Bg4 {[%clk 0:02:21]} 14. Ng5 {[%clk 0:01:36]}  h5 {[%clk 0:01:36]} 15. Qf4 {[%clk 0:01:18]}  Bf6 {[%clk 0:01:33]} 16. f3 {[%clk 0:01:09]}  Bd7 {[%clk 0:01:31]} 17. b4 {[%clk 0:00:42]}  Qa3 {[%clk 0:01:28]} 18. Kd2 {[%clk 0:00:31]}  Rc8 {[%clk 0:01:19]} 19. Rhc1 {[%clk 0:00:27]}  Qb2+ {[%clk 0:01:17]} 20. Kd1 {[%clk 0:00:15]}  Qxg2 {[%clk 0:01:16]} 21. Rc2 {[%clk 0:00:04]}  Qg1+ {[%clk 0:01:16]} 22. Bf1 {[%clk 0:00:05]}  h4 {[%clk 0:01:15]} 23. Ke2 {[%clk 0:00:04]}  Qxg3 {[%clk 0:01:15]} 24. Qxg3 {[%clk 0:00:00]}  hxg3 {[%clk 0:01:16]} 0-1

[Event "January 9 Late 2024"]
[Site "https://www.chess.com"]
[Date "2024.01.09"]
[Round "2"]
[White "Niedbala, Bartlomiej"]
[Black "Rees, Ioan"]
[Result "1-0"]
[Board "139"]
[TimeControl "180+1"]
[WhiteFideId "21834008"]
[BlackFideId "1801236"]
[WhiteElo "2665"]
[BlackElo "2410"]
[WhiteTeam "POL"]
[BlackTeam "WLS"]
[WhiteClock "0:00:15"]
[BlackClock "0:00:03"]

1. e4 {[%clk 0:02:54]}  e5 {[%clk 0:03:00]} 2. Nf3 {[%clk 0:02:54]}  Nc6 {[%clk 0:03:00]} 3. c3 {[%clk 0:02:54]}  d5 {[%clk 0:02:59]} 4. Qa4 {[%clk 0:02:53]}  Bd7 {[%clk 0:02:59]} 5. exd5 {[%clk 0:02:50]}  Nd4 {[%clk 0:02:59]} 6. Qd1 {[%clk 0:02:50]}  Nxf3+ {[%clk 0:03:00]} 7. Qxf3 {[%clk 0:02:51]}  Nf6 {[%clk 0:03:00]} 8. c4 {[%clk 0:02:51]}  Bd6 {[%clk 0:02:52]} 9. Nc3 {[%clk 0:02:50]}  O-O {[%clk 0:02:45]} 10. d3 {[%clk 0:02:47]}  c6 {[%clk 0:02:41]} 11. Bg5 {[%clk 0:02:45]}  Be7 {[%clk 0:02:29]} 12. Be2 {[%clk 0:02:25]}  h6 {[%clk 0:02:22]} 13. Bh4 {[%clk 0:02:20]}  Nxd5 {[%clk 0:02:16]} 14. Bxe7 {[%clk 0:02:12]}  Nxe7 {[%clk 0:02:17]} 15. O-O {[%clk 0:02:12]}  Ng6 {[%clk 0:02:16]} 16. Rfe1 {[%clk 0:02:12]}  f5 {[%clk 0:02:10]} 17. Bf1 {[%clk 0:02:08]}  Qg5 {[%clk 0:02:06]} 18. Qg3 {[%clk 0:02:07]}  Rae8 {[%clk 0:02:03]} 19. Qxg5 {[%clk 0:02:06]}  hxg5 {[%clk 0:02:03]} 20. Rad1 {[%clk 0:02:05]}  g4 {[%clk 0:01:58]} 21. g3 {[%clk 0:02:02]}  Kf7 {[%clk 0:01:51]} 22. b4 {[%clk 0:01:57]}  Rh8 {[%clk 0:01:45]} 23. b5 {[%clk 0:01:37]}  Rh6 {[%clk 0:01:38]} 24. d4 {[%clk 0:01:27]}  e4 {[%clk 0:01:34]} 25. bxc6 {[%clk 0:01:25]}  bxc6 {[%clk 0:01:24]} 26. Rb1 {[%clk 0:01:14]}  Reh8 {[%clk 0:01:11]} 27. Rb7 {[%clk 0:01:12]}  Rxh2 {[%clk 0:01:07]} 28. Bg2 {[%clk 0:01:01]}  Nf8 {[%clk 0:01:04]} 29. Rxa7 {[%clk 0:00:59]}  g5 {[%clk 0:00:59]} 30. Rb1 {[%clk 0:00:55]}  Ke7 {[%clk 0:00:49]} 31. d5 {[%clk 0:00:48]}  f4 {[%clk 0:00:42]} 32. d6+ {[%clk 0:00:26]}  Kf7 {[%clk 0:00:16]} 33. Nxe4 {[%clk 0:00:23]}  f3 {[%clk 0:00:16]} 34. Nxg5+ {[%clk 0:00:23]}  Kf6 {[%clk 0:00:16]} 35. Nxf3 {[%clk 0:00:24]}  gxf3 {[%clk 0:00:17]} 36. Bxf3 {[%clk 0:00:24]}  Ke6 {[%clk 0:00:16]} 37. c5 {[%clk 0:00:24]}  R2h6 {[%clk 0:00:14]} 38. Bg4+ {[%clk 0:00:23]}  Ke5 {[%clk 0:00:13]} 39. Bxd7 {[%clk 0:00:24]}  Rh1+ {[%clk 0:00:12]} 40. Kg2 {[%clk 0:00:24]}  Rxb1 {[%clk 0:00:12]} 41. Bxc6 {[%clk 0:00:23]}  Ne6 {[%clk 0:00:11]} 42. Re7 {[%clk 0:00:23]}  Kf6 {[%clk 0:00:10]} 43. Be4 {[%clk 0:00:16]}  Ng5 {[%clk 0:00:03]} 44. Bxb1 {[%clk 0:00:15]} 1-0

[Event "January 9 Late 2024"]
[Site "https://www.chess.com"]
[Date "2024.01.09"]
[Round "2"]
[White "Alvarado, Carlos"]
[Black "Boyer, Mahel"]
[Result "0-1"]
[Board "140"]
[TimeControl "180+1"]
[WhiteFideId "3800555"]
[BlackFideId "45102422"]
[WhiteElo "2408"]
[BlackElo "2662"]
[WhiteTeam "PER"]
[BlackTeam "FRA"]
[WhiteClock "0:00:00"]
[BlackClock "0:00:06"]

1. d4 {[%clk 0:03:00]}  d6 {[%clk 0:02:57]} 2. Nf3 {[%clk 0:03:01]}  Nf6 {[%clk 0:02:53]} 3. Bg5 {[%clk 0:03:00]}  g6 {[%clk 0:02:50]} 4. Bxf6 {[%clk 0:03:00]}  exf6 {[%clk 0:02:50]} 5. g3 {[%clk 0:03:00]}  Bg7 {[%clk 0:02:42]} 6. Bg2 {[%clk 0:02:59]}  O-O {[%clk 0:02:43]} 7. O-O {[%clk 0:02:59]}  c6 {[%clk 0:02:38]} 8. c3 {[%clk 0:02:58]}  Nd7 {[%clk 0:02:38]} 9. Nbd2 {[%clk 0:02:57]}  Re8 {[%clk 0:02:38]} 10. e3 {[%clk 0:02:52]}  f5 {[%clk 0:02:36]} 11. a4 {[%clk 0:02:51]}  a5 {[%clk 0:02:36]} 12. Nc4 {[%clk 0:02:48]}  Nf6 {[%clk 0:02:33]} 13. Nfd2 {[%clk 0:02:47]}  h5 {[%clk 0:02:29]} 14. h4 {[%clk 0:02:44]}  Be6 {[%clk 0:02:24]} 15. Re1 {[%clk 0:02:17]}  Ng4 {[%clk 0:02:17]} 16. Qe2 {[%clk 0:02:07]}  Qc7 {[%clk 0:02:13]} 17. Nf3 {[%clk 0:02:05]}  Re7 {[%clk 0:02:13]} 18. Ng5 {[%clk 0:02:02]}  Bd7 {[%clk 0:02:13]} 19. Qc2 {[%clk 0:01:54]}  Rae8 {[%clk 0:01:59]} 20. Nh3 {[%clk 0:01:54]}  Be6 {[%clk 0:01:52]} 21. Nd2 {[%clk 0:01:48]}  Bh6 {[%clk 0:01:50]} 22. Nf3 {[%clk 0:01:43]}  Qb6 {[%clk 0:01:48]} 23. Nf4 {[%clk 0:01:43]}  Bb3 {[%clk 0:01:46]} 24. Qd2 {[%clk 0:01:41]}  Nf6 {[%clk 0:01:35]} 25. Ng5 {[%clk 0:01:38]}  Bxg5 {[%clk 0:01:35]} 26. hxg5 {[%clk 0:01:39]}  Ne4 {[%clk 0:01:35]} 27. Bxe4 {[%clk 0:01:38]}  Rxe4 {[%clk 0:01:36]} 28. f3 {[%clk 0:01:30]}  R4e7 {[%clk 0:01:36]} 29. Kf2 {[%clk 0:01:31]}  Qa6 {[%clk 0:01:35]} 30. Rh1 {[%clk 0:01:24]}  Kg7 {[%clk 0:01:35]} 31. Rh4 {[%clk 0:01:24]}  Rxe3 {[%clk 0:01:31]} 32. Qxe3 {[%clk 0:01:22]}  Rxe3 {[%clk 0:01:32]} 33. Kxe3 {[%clk 0:01:21]}  Qc4 {[%clk 0:01:33]} 34. Rah1 {[%clk 0:01:15]}  f6 {[%clk 0:00:28]} 35. gxf6+ {[%clk 0:01:07]}  Kf7 {[%clk 0:00:28]} 36. Nxh5 {[%clk 0:00:45]}  gxh5 {[%clk 0:00:28]} 37. Rxh5 {[%clk 0:00:46]}  Qe6+ {[%clk 0:00:24]} 38. Kf4 {[%clk 0:00:45]}  Qe2 {[%clk 0:00:16]} 39. Rh7+ {[%clk 0:00:24]}  Kf8 {[%clk 0:00:16]} 40. Kg5 {[%clk 0:00:15]}  Qxf3 {[%clk 0:00:14]} 41. Rh8+ {[%clk 0:00:11]}  Bg8 {[%clk 0:00:13]} 42. f7 {[%clk 0:00:09]}  Kxf7 {[%clk 0:00:06]} 43. R8h3 {[%clk 0:00:08]}  Qg4+ {[%clk 0:00:06]} 44. Kh6 {[%clk 0:00:08]}  Qg7+ {[%clk 0:00:06]} 45. Kh5 {[%clk 0:00:00]}  Kf6 {[%clk 0:00:06]} 0-1

[Event "January 9 Late 2024"]
[Site "https://www.chess.com"]
[Date "2024.01.09"]
[Round "2"]
[White "Buchenau, Frank"]
[Black "Ibadov, Dashgyn"]
[Result "1/2-1/2"]
[Board "144"]
[TimeControl "180+1"]
[WhiteFideId "4604350"]
[BlackFideId "24107514"]
[WhiteElo "2396"]
[BlackElo "2643"]
[WhiteTeam "GER"]
[BlackTeam "FID"]
[WhiteClock "0:00:28"]
[BlackClock "0:00:03"]

1. e4 {[%clk 0:02:56]}  e6 {[%clk 0:02:59]} 2. d4 {[%clk 0:02:55]}  d5 {[%clk 0:03:00]} 3. Nd2 {[%clk 0:02:55]}  c5 {[%clk 0:02:59]} 4. exd5 {[%clk 0:02:53]}  Qxd5 {[%clk 0:03:00]} 5. Ngf3 {[%clk 0:02:53]}  cxd4 {[%clk 0:03:00]} 6. Bc4 {[%clk 0:02:53]}  Qd6 {[%clk 0:03:01]} 7. O-O {[%clk 0:02:52]}  Nf6 {[%clk 0:02:59]} 8. Nb3 {[%clk 0:02:52]}  Nc6 {[%clk 0:03:00]} 9. Nbxd4 {[%clk 0:02:52]}  Nxd4 {[%clk 0:03:00]} 10. Qxd4 {[%clk 0:02:52]}  Qxd4 {[%clk 0:02:59]} 11. Nxd4 {[%clk 0:02:53]}  Bd7 {[%clk 0:02:59]} 12. Bf4 {[%clk 0:02:47]}  Rc8 {[%clk 0:02:50]} 13. Bb3 {[%clk 0:02:47]}  Bc5 {[%clk 0:02:48]} 14. Rad1 {[%clk 0:02:46]}  O-O {[%clk 0:02:45]} 15. Rfe1 {[%clk 0:02:45]}  Rfd8 {[%clk 0:02:43]} 16. c3 {[%clk 0:02:37]}  a6 {[%clk 0:02:35]} 17. h3 {[%clk 0:02:31]}  b5 {[%clk 0:02:30]} 18. Re2 {[%clk 0:02:12]}  a5 {[%clk 0:02:16]} 19. a3 {[%clk 0:02:03]}  h6 {[%clk 0:01:47]} 20. Be5 {[%clk 0:01:55]}  Kf8 {[%clk 0:01:28]} 21. Rd3 {[%clk 0:01:50]}  b4 {[%clk 0:01:24]} 22. axb4 {[%clk 0:01:49]}  axb4 {[%clk 0:01:20]} 23. Nf3 {[%clk 0:01:25]}  Bb5 {[%clk 0:01:15]} 24. Rxd8+ {[%clk 0:01:23]}  Rxd8 {[%clk 0:01:16]} 25. Rd2 {[%clk 0:01:21]}  Rxd2 {[%clk 0:01:08]} 26. Nxd2 {[%clk 0:01:21]}  Ke7 {[%clk 0:01:07]} 27. cxb4 {[%clk 0:01:08]}  Bxb4 {[%clk 0:01:08]} 28. Bc3 {[%clk 0:01:08]}  Bxc3 {[%clk 0:01:04]} 29. bxc3 {[%clk 0:01:07]}  Kd6 {[%clk 0:01:03]} 30. f3 {[%clk 0:01:00]}  h5 {[%clk 0:00:53]} 31. h4 {[%clk 0:00:58]}  Bd3 {[%clk 0:00:31]} 32. Kf2 {[%clk 0:00:57]}  Nd5 {[%clk 0:00:32]} 33. Bxd5 {[%clk 0:00:47]}  Kxd5 {[%clk 0:00:30]} 34. Ke3 {[%clk 0:00:47]}  Bb5 {[%clk 0:00:26]} 35. g4 {[%clk 0:00:40]}  hxg4 {[%clk 0:00:16]} 36. fxg4 {[%clk 0:00:41]}  f5 {[%clk 0:00:10]} 37. Kf4 {[%clk 0:00:36]}  fxg4 {[%clk 0:00:08]} 38. Kxg4 {[%clk 0:00:36]}  e5 {[%clk 0:00:06]} 39. Kf5 {[%clk 0:00:32]}  Bd7+ {[%clk 0:00:06]} 40. Kg6 {[%clk 0:00:31]}  e4 {[%clk 0:00:03]} 41. Nxe4 {[%clk 0:00:29]}  Kxe4 {[%clk 0:00:04]} 42. Kxg7 {[%clk 0:00:29]}  Bg4 {[%clk 0:00:03]} 43. Kg6 {[%clk 0:00:28]}  Kd3 {[%clk 0:00:03]} 44. Kg5 {[%clk 0:00:27]}  Be2 {[%clk 0:00:03]} 45. h5 {[%clk 0:00:27]}  Bxh5 {[%clk 0:00:03]} 46. Kxh5 {[%clk 0:00:28]}  Kxc3 {[%clk 0:00:03]} 1/2-1/2

[Event "January 9 Late 2024"]
[Site "https://www.chess.com"]
[Date "2024.01.09"]
[Round "2"]
[White "Lizak, Peter"]
[Black "Silva, Pedro Gil Ferreira Da"]
[Result "1-0"]
[Board "145"]
[TimeControl "180+1"]
[WhiteFideId "731595"]
[BlackFideId "1946102"]
[WhiteElo "2635"]
[BlackElo "2395"]
[WhiteTeam "HUN"]
[BlackTeam "POR"]
[WhiteClock "0:00:51"]
[BlackClock "0:00:47"]

1. d4 {[%clk 0:02:58]}  Nf6 {[%clk 0:02:59]} 2. Nc3 {[%clk 0:02:58]}  d5 {[%clk 0:02:59]} 3. Bf4 {[%clk 0:02:58]}  a6 {[%clk 0:02:58]} 4. e3 {[%clk 0:02:59]}  c5 {[%clk 0:02:58]} 5. dxc5 {[%clk 0:02:58]}  e6 {[%clk 0:02:58]} 6. Na4 {[%clk 0:02:58]}  Nbd7 {[%clk 0:02:54]} 7. b4 {[%clk 0:02:55]}  a5 {[%clk 0:02:54]} 8. c3 {[%clk 0:02:55]}  Be7 {[%clk 0:02:46]} 9. a3 {[%clk 0:02:51]}  O-O {[%clk 0:02:45]} 10. Nf3 {[%clk 0:02:51]}  Ne4 {[%clk 0:02:46]} 11. Bd3 {[%clk 0:02:48]}  Bf6 {[%clk 0:02:46]} 12. Bxe4 {[%clk 0:02:45]}  dxe4 {[%clk 0:02:47]} 13. Nd2 {[%clk 0:02:40]}  axb4 {[%clk 0:02:35]} 14. axb4 {[%clk 0:02:39]}  b5 {[%clk 0:02:15]} 15. cxb6 {[%clk 0:02:27]}  Nxb6 {[%clk 0:02:14]} 16. Nxb6 {[%clk 0:02:23]}  Rxa1 {[%clk 0:02:14]} 17. Qxa1 {[%clk 0:02:23]}  Qxb6 {[%clk 0:02:14]} 18. Nxe4 {[%clk 0:02:21]}  Ba6 {[%clk 0:02:14]} 19. Nxf6+ {[%clk 0:02:19]}  gxf6 {[%clk 0:02:14]} 20. Qa5 {[%clk 0:02:03]}  Qxa5 {[%clk 0:02:11]} 21. bxa5 {[%clk 0:02:03]}  Rd8 {[%clk 0:02:10]} 22. e4 {[%clk 0:01:35]}  e5 {[%clk 0:01:52]} 23. Be3 {[%clk 0:01:35]}  Rb8 {[%clk 0:01:40]} 24. Bb6 {[%clk 0:01:35]}  Rd8 {[%clk 0:01:36]} 25. f3 {[%clk 0:01:28]}  Rd3 {[%clk 0:01:36]} 26. Kf2 {[%clk 0:01:25]}  Rxc3 {[%clk 0:01:35]} 27. Rd1 {[%clk 0:01:24]}  Rc2+ {[%clk 0:01:34]} 28. Kg3 {[%clk 0:01:23]}  Kg7 {[%clk 0:01:35]} 29. Bd8 {[%clk 0:01:20]}  Rc6 {[%clk 0:01:17]} 30. Be7 {[%clk 0:01:21]}  Kg6 {[%clk 0:01:15]} 31. h4 {[%clk 0:01:21]}  h5 {[%clk 0:01:15]} 32. Rd8 {[%clk 0:01:17]}  Kg7 {[%clk 0:01:15]} 33. Rb8 {[%clk 0:01:12]}  Re6 {[%clk 0:01:08]} 34. Bd8 {[%clk 0:01:10]}  Rc6 {[%clk 0:01:07]} 35. Rb6 {[%clk 0:01:10]}  Rxb6 {[%clk 0:01:07]} 36. axb6 {[%clk 0:01:11]}  Kg6 {[%clk 0:01:05]} 37. Kf2 {[%clk 0:01:11]}  f5 {[%clk 0:01:05]} 38. Ke3 {[%clk 0:01:08]}  fxe4 {[%clk 0:01:05]} 39. Kxe4 {[%clk 0:01:07]}  f6 {[%clk 0:00:57]} 40. Kd5 {[%clk 0:01:07]}  Bb7+ {[%clk 0:00:56]} 41. Ke6 {[%clk 0:01:03]}  e4 {[%clk 0:00:56]} 42. fxe4 {[%clk 0:01:00]}  Bxe4 {[%clk 0:00:57]} 43. g3 {[%clk 0:00:53]}  f5 {[%clk 0:00:47]} 44. Bg5 {[%clk 0:00:51]} 1-0

[Event "January 9 Late 2024"]
[Site "https://www.chess.com"]
[Date "2024.01.09"]
[Round "2"]
[White "Zavgorodniy, Sergiy"]
[Black "Mohammed, Zozek Salah Mohammed"]
[Result "1/2-1/2"]
[Board "147"]
[TimeControl "180+1"]
[WhiteFideId "14110148"]
[BlackFideId "4803361"]
[WhiteElo "2622"]
[BlackElo "2394"]
[WhiteTeam "UKR"]
[BlackTeam "IRQ"]
[WhiteClock "0:00:35"]
[BlackClock "0:01:42"]

1. d4 {[%clk 0:03:00]}  d5 {[%clk 0:02:59]} 2. c4 {[%clk 0:03:00]}  c6 {[%clk 0:02:59]} 3. e3 {[%clk 0:03:00]}  Nf6 {[%clk 0:03:00]} 4. Bd3 {[%clk 0:02:59]}  e6 {[%clk 0:03:00]} 5. Nd2 {[%clk 0:02:59]}  Nbd7 {[%clk 0:03:00]} 6. Ngf3 {[%clk 0:02:56]}  Bd6 {[%clk 0:03:00]} 7. O-O {[%clk 0:02:56]}  O-O {[%clk 0:03:01]} 8. e4 {[%clk 0:02:56]}  dxe4 {[%clk 0:02:56]} 9. Nxe4 {[%clk 0:02:57]}  Nxe4 {[%clk 0:02:57]} 10. Bxe4 {[%clk 0:02:58]}  Nf6 {[%clk 0:02:57]} 11. Bc2 {[%clk 0:02:57]}  c5 {[%clk 0:02:55]} 12. Bg5 {[%clk 0:02:56]}  h6 {[%clk 0:02:54]} 13. Bh4 {[%clk 0:02:52]}  b6 {[%clk 0:02:50]} 14. Qd3 {[%clk 0:02:48]}  Re8 {[%clk 0:02:43]} 15. Rad1 {[%clk 0:02:43]}  Bb7 {[%clk 0:02:40]} 16. Rfe1 {[%clk 0:02:40]}  Bxf3 {[%clk 0:02:28]} 17. Qxf3 {[%clk 0:02:41]}  cxd4 {[%clk 0:02:28]} 18. Bxf6 {[%clk 0:02:20]}  Qxf6 {[%clk 0:02:27]} 19. Qxf6 {[%clk 0:02:19]}  gxf6 {[%clk 0:02:28]} 20. Rxd4 {[%clk 0:02:19]}  Bc5 {[%clk 0:02:27]} 21. Rd7 {[%clk 0:02:16]}  Rad8 {[%clk 0:02:26]} 22. Red1 {[%clk 0:02:14]}  Rxd7 {[%clk 0:02:26]} 23. Rxd7 {[%clk 0:02:15]}  a5 {[%clk 0:02:24]} 24. Kf1 {[%clk 0:02:14]}  Kg7 {[%clk 0:02:23]} 25. Ke2 {[%clk 0:02:13]}  f5 {[%clk 0:02:23]} 26. f3 {[%clk 0:02:11]}  Kf6 {[%clk 0:02:21]} 27. g3 {[%clk 0:02:09]}  h5 {[%clk 0:02:18]} 28. f4 {[%clk 0:02:05]}  h4 {[%clk 0:02:17]} 29. Kf3 {[%clk 0:02:03]}  hxg3 {[%clk 0:02:12]} 30. hxg3 {[%clk 0:02:04]}  Rh8 {[%clk 0:02:12]} 31. Kg2 {[%clk 0:02:04]}  Rg8 {[%clk 0:02:08]} 32. b3 {[%clk 0:02:00]}  Be3 {[%clk 0:02:07]} 33. Kf3 {[%clk 0:02:00]}  Bc5 {[%clk 0:02:06]} 34. Rd1 {[%clk 0:01:54]}  Rh8 {[%clk 0:02:05]} 35. Kg2 {[%clk 0:01:53]}  Ke7 {[%clk 0:02:05]} 36. Rh1 {[%clk 0:01:47]}  Rd8 {[%clk 0:02:02]} 37. Rd1 {[%clk 0:01:46]}  Rxd1 {[%clk 0:02:02]} 38. Bxd1 {[%clk 0:01:47]}  Ba3 {[%clk 0:02:01]} 39. Kf3 {[%clk 0:01:46]}  Kd6 {[%clk 0:01:58]} 40. g4 {[%clk 0:01:43]}  fxg4+ {[%clk 0:01:57]} 41. Kxg4 {[%clk 0:01:44]}  f6 {[%clk 0:01:56]} 42. Kf3 {[%clk 0:01:40]}  Bc1 {[%clk 0:01:56]} 43. Bc2 {[%clk 0:01:36]}  Kc5 {[%clk 0:01:56]} 44. Ke4 {[%clk 0:01:32]}  Kb4 {[%clk 0:01:55]} 45. f5 {[%clk 0:01:26]}  e5 {[%clk 0:01:50]} 46. Kd5 {[%clk 0:01:16]}  Kc3 {[%clk 0:01:46]} 47. Bd1 {[%clk 0:01:11]}  Kb2 {[%clk 0:01:43]} 48. a4 {[%clk 0:01:04]}  Kc3 {[%clk 0:01:42]} 49. Ke4 {[%clk 0:00:43]}  Ba3 {[%clk 0:01:37]} 50. Ke3 {[%clk 0:00:36]}  Bc5+ {[%clk 0:01:34]} 51. Ke4 {[%clk 0:00:36]}  Kd2 {[%clk 0:01:33]} 52. Bh5 {[%clk 0:00:35]}  Kc2 {[%clk 0:01:33]} 53. Be8 {[%clk 0:00:34]}  Kxb3 {[%clk 0:01:33]} 54. Bb5 {[%clk 0:00:35]}  Kc2 {[%clk 0:01:33]} 55. Ba6 {[%clk 0:00:34]}  Kc3 {[%clk 0:01:32]} 56. Bb5 {[%clk 0:00:33]}  Kb4 {[%clk 0:01:32]} 57. Kd3 {[%clk 0:00:33]}  Kb3 {[%clk 0:01:31]} 58. Ke4 {[%clk 0:00:33]}  Kc3 {[%clk 0:01:31]} 59. Ba6 {[%clk 0:00:33]}  Kb4 {[%clk 0:01:32]} 60. Bb5 {[%clk 0:00:33]}  Kc3 {[%clk 0:01:32]} 61. Ba6 {[%clk 0:00:33]}  Kd2 {[%clk 0:01:33]} 62. Bb5 {[%clk 0:00:33]}  Ke2 {[%clk 0:01:34]} 63. Ba6 {[%clk 0:00:33]}  Kf2 {[%clk 0:01:34]} 64. Bb5 {[%clk 0:00:34]}  Kg3 {[%clk 0:01:35]} 65. Ba6 {[%clk 0:00:34]}  Kg4 {[%clk 0:01:36]} 66. Bb5 {[%clk 0:00:34]}  Kh5 {[%clk 0:01:37]} 67. Ba6 {[%clk 0:00:34]}  Kh6 {[%clk 0:01:38]} 68. Bb5 {[%clk 0:00:34]}  Kg7 {[%clk 0:01:39]} 69. Ba6 {[%clk 0:00:35]}  Kf8 {[%clk 0:01:40]} 70. Bb5 {[%clk 0:00:35]}  Ke7 {[%clk 0:01:40]} 71. Ba6 {[%clk 0:00:36]}  Kd6 {[%clk 0:01:41]} 72. Bb5 {[%clk 0:00:36]}  Bd4 {[%clk 0:01:42]} 73. Ba6 {[%clk 0:00:36]}  Kc5 {[%clk 0:01:43]} 74. Bb5 {[%clk 0:00:36]}  Kb4 {[%clk 0:01:44]} 75. Kd3 {[%clk 0:00:37]}  Ba1 {[%clk 0:01:42]} 76. Ke4 {[%clk 0:00:36]}  Kc5 {[%clk 0:01:43]} 77. Kd3 {[%clk 0:00:36]}  Bb2 {[%clk 0:01:39]} 78. Ke4 {[%clk 0:00:36]}  Ba3 {[%clk 0:01:39]} 79. Kd3 {[%clk 0:00:36]}  Bb4 {[%clk 0:01:40]} 80. Ke4 {[%clk 0:00:36]}  Kd6 {[%clk 0:01:40]} 81. Ba6 {[%clk 0:00:36]}  Kc6 {[%clk 0:01:39]} 82. Bb5+ {[%clk 0:00:36]}  Kc5 {[%clk 0:01:39]} 83. Kd3 {[%clk 0:00:36]}  Be1 {[%clk 0:01:39]} 84. Ke4 {[%clk 0:00:36]}  Bh4 {[%clk 0:01:40]} 85. Kd3 {[%clk 0:00:36]}  Bg5 {[%clk 0:01:40]} 86. Ke4 {[%clk 0:00:36]}  Kb4 {[%clk 0:01:41]} 87. Kd3 {[%clk 0:00:36]}  Kb3 {[%clk 0:01:41]} 88. Ke4 {[%clk 0:00:35]}  Kb4 {[%clk 0:01:42]} 89. Kd3 {[%clk 0:00:35]}  Kc5 {[%clk 0:01:42]} 90. Ke4 {[%clk 0:00:35]}  Kb4 {[%clk 0:01:42]} 1/2-1/2